Cogmind - Beta 14 @@@ ROGUE MODE // 2025.03.29 @ 16:02:59 Player: SirusTheMadDJ Result: Self-destructed Performance ------------- Evolutions (1) 500 Regions Visited (3) 600 Robots Destroyed (34) 170 Value Destroyed (728) 728 Prototype IDs (2) 40 Alien Tech Used (0) 0 Bonus (0) 0 TOTAL SCORE: 2038 Bonus ------- None Cogmind --------- Core Integrity 292/400 Matter 287/300 Energy 265/265 System Corruption 0% Temperature Warm (143) Movement Walking (260) Ox2 Location -9/Materials Parts ------- > --- POWER (1) -------- Improved Ion Engine > --- PROPULSION (4) --- Aluminum Leg > --- UTILITY (2) ------ Medium Storage Unit Visual Processing Unit > --- WEAPON (2) ------- Particle Gun Light Cannon > --- INVENTORY (10) --- Improved Ion Engine Light Treads Light Treads Improved Heat Sink Datajack Mining Laser Peak State ------------ > --- POWER ------------ Improved Ion Engine > --- PROPULSION ------- Aluminum Leg Aluminum Leg Aluminum Leg Aluminum Leg > --- UTILITY ---------- Medium Storage Unit Visual Processing Unit > --- WEAPON ----------- Particle Gun Light Cannon > --- INVENTORY -------- Light Treads Light Treads Improved Heat Sink Datajack Mining Laser [Rating: 12] Favorites ----------- Power Ion Engine Engine Ion Engine Propulsion Aluminum Leg Leg Aluminum Leg Utility Medium Storage Unit Storage Medium Storage Unit Processor Visual Processing Unit Hackware Hacking Suite Protection Weapon Shielding Weapon Assault Rifle Energy Gun Medium Laser Ballistic Gun Assault Rifle Ballistic Cannon Light Cannon Launcher Grenade Launcher Special Melee Weapon Datajack Build | -11 -10 -10 -9 ------- Run | Yrd Mat Min Mat Slots Evolved 2 | . . . 2 Power . | . . . . Propulsion 2 | . . . 2 Utility . | . . . . Weapon . | . . . . Parts Attached 44 | 7 22 6 9 Power 6 | 1 1 2 2 Engine 6 | 1 1 2 2 Core . | . . . . Reactor . | . . . . Propulsion 13 | 2 7 . 4 Treads . | . . . . Leg 13 | 2 7 . 4 Wheel . | . . . . Hover . | . . . . Flight . | . . . . Utility 6 | 2 4 . . Device . | . . . . Storage 3 | 2 1 . . Processor 1 | . 1 . . Hackware 1 | . 1 . . Protection 1 | . 1 . . Artifact . | . . . . Weapon 19 | 2 10 4 3 Energy Gun 3 | 1 . . 2 Energy Cannon . | . . . . Ballistic Gun 3 | 1 2 . . Ballistic Cannon 7 | . 5 2 . Launcher 1 | . . 1 . Special Weapon . | . . . . Impact Weapon . | . . . . Slashing Weapon . | . . . . Piercing Weapon . | . . . . Special Melee Weapon 5 | . 3 1 1 Unidentified Prototypes . | . . . . Parts Lost 8 | . 1 3 4 Power 2 | . . 2 . Propulsion 3 | . . . 3 Utility 1 | . 1 . . Weapon 2 | . . 1 1 Highest Loss Streak 2 | . 1 2 2 To Critical Strikes . | . . . . Average Slot Usage (%) 92 | . 92 96 87 Engine 13 | . 14 11 10 Leg 29 | . 27 28 35 Storage 13 | . 14 14 11 Processor 4 | . 1 14 11 Protection 3 | . 5 . . Energy Gun 2 | . 2 . 6 Ballistic Gun 13 | . 15 14 1 Ballistic Cannon 8 | . 7 9 11 Special Melee Weapon 2 | . 2 1 . Peak Build Rating 12 | 7 10 9 12 Average Rating 7 | 4 7 8 10 On Entrance 5 | . 6 9 8 Naked Turns . | . . . . Heaviest Build 23 | 14 21 20 23 Greatest Support 40 | 20 20 20 40 Greatest Overweight (x) 2 | . 2 . . Average Overweight (x) . | . . . . Largest Inventory Capacity 10 | 8 10 10 10 Average Capacity 9 | 6 9 10 10 Most Carried 10 | 2 10 8 6 Average Carried 6 | . 7 7 5 Final Capacity 10 | 8 10 10 10 Final Carried 8 | 2 8 7 6 Class Distribution -------------------- 75% | Mutant 24% | Scavenger-Mutant Dominant Class ---------------- Mutant | -10/Materials Scavenger-Mutant | -10/Mines Scavenger-Mutant | -9/Materials Resources | -11 -10 -10 -9 ----------- Run | Yrd Mat Min Mat Matter Collected 1260 | 285 524 255 196 Remotely . | . . . . Salvage Created 1162 | 75 626 282 179 Parts 65 | 1 39 12 13 Haulers Intercepted 1 | . 1 . . Recyclers Shooed 2 | . 1 . 1 Parts Field Recycled . | . . . . Retrieved Matter . | . . . . Parts Self-Destructed . | . . . . Prevented . | . . . . Kills | -11 -10 -10 -9 ------- Run | Yrd Mat Min Mat Combat Hostiles Destroyed 21 | . 13 3 5 Guns 10 | . 6 3 1 Cannons 10 | . 6 . 4 Classes Destroyed 9 | 1 6 . 2 Worker 1 | . 1 . . Hauler 1 | . 1 . . Recycler 6 | 1 2 3 . Operator 1 | . 1 . . Watcher 4 | . 3 . 1 Swarmer 9 | . 6 3 . Grunt 9 | . 7 . 2 Duelist 1 | . . . 1 Sentry 2 | . . . 2 Best Kill Streak 5 | 1 4 5 3 Combat Bots Only 3 | . 3 3 3 Max Kills in Single Turn 1 | 1 1 1 1 Gunslinging . | . . . . Exploded . | . . . . Melee . | . . . . Uniques/NPCs Destroyed . | . . . . Combat | -11 -10 -10 -9 -------- Run | Yrd Mat Min Mat Hostile Shots Fired 178 | . 72 46 60 Missed 50 | . 23 10 17 Damage Taken 1706 | . 536 614 556 Core 356 | . 65 183 108 Absorbed by Shields . | . . . . Redirected to Shielding 51 | . 51 . . Core Remaining (%) 50 | 100 . . . Volleys Fired 125 | 5 72 17 31 Largest 2 | 2 2 2 2 Hottest 100 | 70 70 55 100 Shots Fired 234 | 10 141 31 52 Gun 154 | 10 106 17 21 Cannon 79 | . 35 13 31 Launcher 1 | . . 1 . Special . | . . . . Kinetic 189 | 5 118 30 36 Thermal 44 | 5 23 . 16 Explosive 1 | . . 1 . Electromagnetic . | . . . . Robot Hit Streak 10 | 3 6 4 10 Robot Miss Streak 5 | 2 5 4 4 Penetration Max . | . . . . Secondary Targets 1 | . 1 . . Max Gunslinging Chain 1 | . 1 . . Shots Hit Robots 127 | 6 78 15 28 Core Hits 47 | 2 30 6 9 Critical Kills . | . . . . Critical Parts Destroyed . | . . . . Critical Strikes 2 | . 2 . . Burn 1 | . 1 . . Blast 1 | . 1 . . Melee Attacks 10 | . 9 1 . Impact . | . . . . Slashing . | . . . . Piercing . | . . . . Sneak Attacks 7 | . 6 1 . Combat Hostiles . | . . . . Follow-up Attacks . | . . . . Damage Inflicted 1819 | 79 1022 203 515 Guns 1028 | 79 659 102 188 Cannons 778 | . 363 88 327 Explosions 13 | . . 13 . Melee . | . . . . Ramming . | . . . . Kinetic 1415 | 40 824 190 361 Thermal 391 | 39 198 . 154 Explosive 13 | . . 13 . Electromagnetic . | . . . . Impact . | . . . . Slashing . | . . . . Piercing . | . . . . Highest Corruption 1 | . 1 1 . Average Corruption 1 | . 1 1 . Corruption Purged . | . . . . Corruption Blocked . | . . . . Effects 2 | . 1 1 . Matter Fused 2 | . 1 1 . Overload Shots . | . . . . Overflow Damage 14 | . . 14 . Projectiles 14 | . . 14 . Explosions . | . . . . Melee . | . . . . Knockbacks 8 | . 1 . 7 Impact . | . . . . Kinetic 7 | . 1 . 6 Secondary 1 | . . . 1 Self-Inflicted Damage . | . . . . Shots . | . . . . Rammed . | . . . . Targets Rammed . | . . . . Kicked . | . . . . Crushed . | . . . . Highest Temperature 323 | 45 195 . 323 Average Temperature 92 | 23 83 . 119 Received Heat Transfer 327 | . 225 . 102 Siege Activations . | . . . . Robots Corrupted . | . . . . Combat Hostiles . | . . . . Parts Fried . | . . . . Impact Corruptions . | . . . . Robots Melted 1 | . 1 . . Combat Hostiles 1 | . 1 . . Parts Melted 2 | 1 1 . . Heat Transferred 1110 | 111 666 . 333 Parts Sabotaged . | . . . . Parts Stolen . | . . . . Parts Stripped . | . . . . Power Chain Reactions . | . . . . Alert | -11 -10 -10 -9 ------- Run | Yrd Mat Min Mat Peak Influence 222 | 5 222 155 185 Initial 60 | . 3 37 60 Average 69 | 3 57 127 98 Maximum Alert Level 1 | . 1 . . Low Security (%) 98 | 100 98 100 100 Level 1 1 | . 1 . . Level 2 . | . . . . Level 3 . | . . . . Level 4 . | . . . . Level 5 . | . . . . High Security . | . . . . Max Security . | . . . . Squads Dispatched 3 | . 2 . 1 Investigation 1 | . 1 . . Extermination . | . . . . Reinforcement 2 | . 1 . 1 Assault . | . . . . Garrison . | . . . . Intercept . | . . . . Searches Triggered . | . . . . Construction Impeded . | . . . . Haulers Reinforced . | . . . . Active Scanning Responses . | . . . . Cargo Convoy Interrupts . | . . . . Stealth | -11 -10 -10 -9 --------- Run | Yrd Mat Min Mat Distress Signals 2 | . 1 . 1 Communications Jammed . | . . . . Distress Signals . | . . . . Times Spotted 40 | . 21 5 14 Peak Tracking Total 7 | . 4 3 7 Tactical Retreats 2 | . 1 1 . Traps | -11 -10 -10 -9 ------- Run | Yrd Mat Min Mat Traps Triggered 4 | . 4 . . Indirectly . | . . . . Trap Hack Attempts . | . . . . Triggered . | . . . . Disarmed 6 | . 6 . . Reprogrammed . | . . . . Reused . | . . . . Traps Extracted . | . . . . Installed . | . . . . Triggered . | . . . . Machines | -11 -10 -10 -9 ---------- Run | Yrd Mat Min Mat Machines Disabled 5 | . 3 2 . Max in Single Turn 1 | . 1 1 . Machines Repaired . | . . . . Machines Dismantled . | . . . . Machines Sabotaged . | . . . . Overloaded Fab Kills . | . . . . Hacking | -11 -10 -10 -9 --------- Run | Yrd Mat Min Mat Machines Accessed 4 | . 3 . 1 Terminals 4 | . 3 . 1 Fabricators . | . . . . Repair Stations . | . . . . Recycling Units . | . . . . Scanalyzers . | . . . . Garrison Access . | . . . . Total Hacks 12 | . 9 . 3 Successful 6 | . 4 . 2 Failed 6 | . 5 . 1 Catastrophic 1 | . 1 . . Database Lockouts . | . . . . Manual 8 | . 7 . 1 Terminals 12 | . 9 . 3 Fabricators . | . . . . Repair Stations . | . . . . Recycling Units . | . . . . Scanalyzers . | . . . . Garrison Access . | . . . . Terminal Hacks 6 | . 4 . 2 Record 2 | . 2 . . Prototype ID Bank 1 | . . . 1 Unreport Threat 1 | . . . 1 Disarm Traps 1 | . 1 . . Zone Layout 1 | . 1 . . Fabricator Hacks . | . . . . Repair Station Hacks . | . . . . Recycling Unit Hacks . | . . . . Scanalyzer . | . . . . Garrison Access Hacks . | . . . . Unauthorized Hacks . | . . . . Terminals . | . . . . Fabricators . | . . . . Repair Stations . | . . . . Recycling Units . | . . . . Scanalyzers . | . . . . Garrison Access . | . . . . Data Cores Recovered . | . . . . Used . | . . . . Hacking Detections 4 | . 3 . 1 Full Trace Events 4 | . 3 . 1 Feedback Events . | . . . . Feedback Blocked . | . . . . Robot Schematics Acquired . | . . . . Robots Built . | . . . . Authchips . | . . . . Time . | . . . . Total Robot Build Rating . | . . . . Part Schematics Acquired . | . . . . Parts Built . | . . . . Authchips . | . . . . Time . | . . . . Total Part Build Rating . | . . . . Parts Repaired . | . . . . Time . | . . . . Parts Recycled . | . . . . Recycled Matter . | . . . . Retrieved Matter . | . . . . Retrieved Components . | . . . . Parts Scanalyzed . | . . . . Part Schematics Acquired . | . . . . Parts Damaged . | . . . . Bothacking | -11 -10 -10 -9 ------------ Run | Yrd Mat Min Mat Used RIF Installer . | . . . . Robots Hacked 2 | . 2 . . Non-combat 2 | . 2 . . Combat . | . . . . Robot Hacks Applied 2 | . 2 . . no_distress 1 | . 1 . . find_recycling 1 | . 1 . . Relay Couplers Released . | . . . . Fabnet Peak Effective % . | . . . . Robots Rewired . | . . . . Allies Hacked . | . . . . Hacks Repelled . | . . . . Allies | -11 -10 -10 -9 -------- Run | Yrd Mat Min Mat Total Allies . | . . . . Largest Group . | . . . . Highest-Rated Group . | . . . . Highest-Rated Ally . | . . . . Total Orders . | . . . . Ally Attacks . | . . . . Total Damage . | . . . . Kills . | . . . . Allies Corrupted . | . . . . Allies Melted . | . . . . Intel | -11 -10 -10 -9 ------- Run | Yrd Mat Min Mat Robot Analysis Total . | . . . . Derelict Logs Recovered . | . . . . Drone Launches . | . . . . Drone Recoveries . | . . . . Exploration | -11 -10 -10 -9 ------------- Run | Yrd Mat Min Mat Turns Passed 2029 | 90 1399 265 275 Spaces Moved 1197 | 54 840 166 137 Core 3 | 3 . . . Treads . | . . . . Legs 1194 | 51 840 166 137 Wheels . | . . . . Hover . | . . . . Flight . | . . . . Fastest Speed 50 | 50 120 120 120 Average Speed 126 | 116 128 120 120 Slowest Speed 260 | 120 260 120 120 Overloaded Moves . | . . . . Propulsion Burnouts . | . . . . Robots Hopped . | . . . . Cave-ins Triggered . | . . . . Exploration Rate (%) 41 | 4 97 48 16 Regions Visited 3 Branch Regions 1 Pre-discovered Areas . | . . . . Known Exits Taken . | . . . . Unknown Exits Taken 3 | 1 1 1 . Scrap Searched . | . . . . Spaces Dug . | . . . . Terrain Destroyed 3 | . . 3 . Melee . | . . . . Projectile . | . . . . AOE 3 | . . 3 . Terrain Rammed . | . . . . Walls Destroyed . | . . . . Machines Disabled . | . . . . Actions | -11 -10 -10 -9 --------- Run | Yrd Mat Min Mat Total 1462 | 68 1004 198 192 Wait 73 | . 50 9 14 Move 1194 | 53 839 165 137 Hop . | . . . . Pick Up 8 | 2 6 . . Fast Attach 17 | 7 5 2 3 Attach 4 | . 1 1 2 Detach . | . . . . Swap 23 | . 16 3 4 Drop 8 | 1 6 . 1 Fire 125 | 5 72 17 31 Melee 10 | . 9 1 . Ram . | . . . . Kick . | . . . . Crush . | . . . . Escape Stasis . | . . . . Rewire . | . . . . Trap . | . . . . Miscellaneous . | . . . . Route ------- -11/Scrapyard -10/Materials (discovered 5 exits: *Mat x3 / [*Min x2]) -10/Mines (discovered 2 exits: *Mat x2) -9/Materials (discovered 1 exit: [*Sto]) History --------- Turn | Location | Event 2 | -11/Scrapyard | Discovered new exit (range 16) 91 | -11/Scrapyard | Entered Materials 187 | -10/Materials | Discovered new exit (range 13) 311 | -10/Materials | Build established: Mutant 370 | -10/Materials | Discovered new exit (range 11) 539 | -10/Materials | Discovered new exit (range 10) 660 | -10/Materials | Discovered new exit (range 8) 985 | -10/Materials | Discovered new exit (range 16) 1490 | -10/Materials | Entered Mines 1513 | -10/Mines | Met a Derelict bent on vengeance 1517 | -10/Mines | Core integrity fell below 50% 1564 | -10/Mines | Discovered new exit (range 17) 1653 | -10/Mines | Assembled infested the area 1702 | -10/Mines | Core integrity fell below 20% 1749 | -10/Mines | Discovered new exit (range 4) 1755 | -10/Mines | Entered Materials 1755 | -9/Materials | Evolved 2 slots: Propulsion x2 1948 | -9/Materials | Discovered new exit (range 8) 2030 | -9/Materials | Self-destructed Last Messages --------------- >>Alert(Purge) Purged threat record, alert level lowered. EXIT=FOUND W-16 Scout destroyed. Acquired 4 matter. Acquired 7 matter. K-01 Serf cleans the Terminal. O-16 Technician sends out distress signal. O-16 Technician: "IFF HANDSHAKE FAILED. SECURING TERMINAL." R-06 Scavenger collects Lgt. Ion Engine. O-16 Technician uses terminal to summon reinforcements. ALERT: Hostiles spotted, dispatching reinforcements to Terminal M001. O-16 Technician locks terminal. R-06 Scavenger collects Hover Unit. K-01 Serf cleans the Fusion Modulator. S-10 Pest knocked back. Aluminum Leg destroyed. Map ----- +----------------------------------------------------+ | ????????????????????????????????????????????????? | | ????????????????????????????????????????????????? | | ????????????????????????????????????????????????? | | ????????????????????????????????????????????????? | | ????????????????????????????????????????????????? | | ????????????????????????????????????#########???? | | ????????????????????????????????????# #???? | | ????????????????????????????????????# #???? | | ????????????????????????????????????# #???? | | ????????????????????????????????????# ######### | | ????????????????????????????????????# #% # | | ????????????????????????????????????# !#= # | | ???????????????###########+########## +* # | | ??????????????? #[ # | | ????????????? a # # | | ???????????""" """ "" # # | | ???????????""" """ oT" ########### # # | | ???????# """ """ "" #?????????# # # | | ???????# % r #?????????# # # | | ???????+ s #?????????# = # # | | ???????# g #?????????# # # | | ???????# s #?????????#% ##/###### | | ??????????????#########s s#?????????#[%[ #????? | | ??????????????????????# #?????######+#######??? | | ??????????????????????# #?????# !!% #??? | | ??????????????????????# @#?????# !! "" "" #??? | | ??????????????????????# #????## !! ""S"" #??? | | ??????????????????????# #????# ! """" #??? | | ??????????????????????# #????## #??? | | ??????????????????????# #?????########+###+#??? | | ??????????????????????# #???????# #??? | | ??????????????????????# #???????# #??? | | ????????????????####??# #???????# ####+##+###? | | ###???????????#T"#??# #######?# # # | | ######## "#### gg## ### # T # | | # """ # | | < + """ # | | ??????#+##########+####+#### ### ## """ # | | ?????????????????# ## ##?# ## # | | ?????????????????# ## #??# ############# | | ?????????????????# """ """ ## #??#+#???????????? | | ?????????????????# """ """ ## #????????????????? | | ?????????????????# """ """ ## #????????????????? | | ?????????????????# """ """ ## #????????????????? | | ?????????????????# """ """ ## ????????????????? | | ?????????????????# ## #????????????????? | | ?????????????????#########?## #????????????????? | | ????????????????????????????# #????????????????? | | ????????????????????????????# ????????????????? | | ????????????????????????????# ????????????????? | +----------------------------------------------------+ Best States ------------- Heat Dissipation 28 Energy Generation 12 Energy Capacity 265 Matter Stores 300 Matter Capacity 300 Sight Range 18 Terrain Scan Density 10 Weapon Shielding 33 Evasion (%) 55 Offensive Hacking 10 Item Schematics ----------------- None Robot Schematics ------------------ None Fabricated ------------ Nothing Alien Tech Used ----------------- None Achievements -------------- None Challenges ------------ None Game ------ Seed CarbideJunkSink Manual? 0 Play Time 00:22:50 Cumulative 10.8 hours Start 2025.03.29 @ 15:32:58 End 2025.03.29 @ 16:02:59 Sessions 1 Manual Loads 0 Difficulty Rogue Special Mode None Game No. 24 Rogue 24 Adventurer 0 Explorer 0 Win Type - Total 0 Types 0/0/0/0/0/0/0/0/0 Lore% 4 Gallery% 15 Achievement% 15 Wizard Run 0 Options --------- Layout 1 ASCII 0 Keyboard 0 Movement Mouse Keybinds 0 Fullscreen 1 Font 24/Smallcaps Map View 50x35 Zoom Use 0% Tactical HUD 0 Map Filters NONE Filters NONE Steam 1 RUN: bc8d0a42-c829-4f02-b181-e081963e80d2